Cogmind - Beta 16 @@@ ROGUE MODE // 2025.11.13 @ 06:57:02 Player: shapeshifter Result: Destroyed by H-55 Commando with Assault Rifle Performance ------------- Evolutions (1) 500 Regions Visited (6) 1200 Robots Destroyed (40) 200 Value Destroyed (1022) 1022 Prototype IDs (25) 500 Alien Tech Used (0) 0 Bonus (339) 339 TOTAL SCORE: 3761 Bonus ------- Follower Combat Kills 39 Aligned with FarCom 300 Cogmind --------- Core Integrity 0/400 Matter 300/300 Energy 265/265 System Corruption 0% Temperature Cool (-100) Movement Walking (190) Ox1 Location -8/Mines Parts ------- > --- POWER (1) -------- Improved Ion Engine > --- PROPULSION (3) --- Advanced Myomer Leg > --- UTILITY (3) ------ Cryofiber Web Large Storage Unit Reactive Plating > --- WEAPON (2) ------- AWS/Gauss > --- INVENTORY (15) --- Experimental Heat Sink Lightpack 2.0 High-capacity Matter Pod (200) Gravity Neutralizer Experimental Targeting Computer Hacking Suite Trap Extractor (0/4) Trap Extractor (0/4) Trap Extractor (0/4) Trap Extractor (0/4) Chronowheel Minigun 8R-AWN's Boregun Peak State ------------ > --- POWER ------------ Improved Ion Engine > --- PROPULSION ------- Advanced Myomer Leg > --- UTILITY ---------- Cryofiber Web Large Storage Unit Reactive Plating > --- WEAPON ----------- AWS/Gauss > --- INVENTORY -------- Cryofiber Web Experimental Heat Sink Lightpack 2.0 Large Matter Pod Large Matter Pod High-capacity Matter Pod High-capacity Matter Pod Gravity Neutralizer Experimental Targeting Computer Chronowheel Minigun 8R-AWN's Boregun [Rating: 41] Favorites ----------- Power Improved Ion Engine Engine Improved Ion Engine Power Core Light Nuclear Core Propulsion Light Treads Treads Light Treads Leg Advanced Myomer Leg Wheel Compact Wheel Utility Large Storage Unit Device Improved Heat Sink Storage Large Storage Unit Hackware Hacking Suite Protection Reactive Plating Weapon Minigun Energy Gun Medium Laser Ballistic Gun Minigun Special Weapon Plasma Cutter Build | -11 -10 -10 -9 -9 -9 -8 ------- Run | Yrd Mat Min Mat Min Exi Min Slots Evolved 2 | . . . 2 . . . Power . | . . . . . . . Propulsion 1 | . . . 1 . . . Utility 1 | . . . 1 . . . Weapon . | . . . . . . . Parts Attached 40 | 8 1 5 12 . 14 . Power 4 | 1 . 1 1 . 1 . Engine 3 | 1 . 1 1 . . . Core 1 | . . . . . 1 . Reactor . | . . . . . . . Propulsion 10 | 2 . 2 5 . 1 . Treads 7 | 2 . . 5 . . . Leg 1 | . . . . . 1 . Wheel 2 | . . 2 . . . . Hover . | . . . . . . . Flight . | . . . . . . . Utility 11 | 2 1 1 2 . 5 . Device 3 | 1 . 1 . . 1 . Storage 3 | 1 1 . . . 1 . Processor . | . . . . . . . Hackware 1 | . . . 1 . . . Protection 4 | . . . 1 . 3 . Artifact . | . . . . . . . Weapon 15 | 3 . 1 4 . 7 . Energy Gun 1 | 1 . . . . . . Energy Cannon . | . . . . . . . Ballistic Gun 13 | 2 . 1 4 . 6 . Ballistic Cannon . | . . . . . . . Launcher . | . . . . . . . Special Weapon 1 | . . . . . 1 . Impact Weapon . | . . . . . . . Slashing Weapon . | . . . . . . . Piercing Weapon . | . . . . . . . Special Melee Weapon . | . . . . . . . Unidentified Prototypes 2 | . . . . . 2 . Parts Lost 17 | . 1 2 1 . 13 . Power 3 | . . 1 1 . 1 . Propulsion 4 | . . 1 . . 3 . Utility 4 | . 1 . . . 3 . Weapon 6 | . . . . . 6 . Highest Loss Streak 6 | . 1 2 1 . 6 . To Critical Strikes 6 | . . . . . 6 . Average Backups 10 | 3 6 4 13 15 11 12 Power 1 | . 1 1 1 1 1 . Propulsion . | 1 2 1 2 . . . Utility 5 | . . 1 6 9 5 9 Weapon 2 | 1 1 1 3 4 3 2 Tool/Special . | . . . . . . . Unused Backups 25 | . . . 7 . 6 12 Power 3 | . . . . . 3 . Propulsion 4 | . . . 4 . . . Utility 16 | . . . 2 . 3 11 Weapon 1 | . . . 1 . . . Tool/Special 1 | . . . . . . 1 Average Slot Usage (%) 92 | . 85 95 99 100 92 66 Engine 9 | . 13 12 10 11 4 11 Core 2 | . . . . . 6 . Treads 25 | . 27 3 26 33 27 . Wheel 2 | . . 23 6 . . . Device 6 | . . 11 11 11 2 11 Storage 11 | . 14 14 11 11 10 11 Hackware 1 | . . . 7 . . . Protection 9 | . . . 3 11 19 11 Ballistic Gun 22 | . 27 28 21 22 20 11 Peak Build Rating 41 | 7 8 9 22 22 41 41 Average Rating 18 | 5 6 8 19 22 22 41 On Entrance 15 | . 7 7 9 22 22 41 Avg Prop Armor Cover (%) 7 | . . . 7 . . . Naked Turns . | . . . . . . . Heaviest Build 53 | 11 25 26 44 44 53 48 Greatest Support 60 | 40 40 40 60 60 60 30 Greatest Overweight (x) 2 | . 1 1 1 . 2 1 Average Overweight (x) . | . . . . . . 1 Largest Inventory Capacity 15 | 8 15 15 15 15 15 15 Average Capacity 14 | 7 13 15 15 15 14 15 Most Carried 15 | 5 10 8 15 15 15 15 Average Carried 11 | 3 6 4 13 15 11 14 Final Capacity 15 | 8 15 15 15 15 15 15 Final Carried 15 | 4 8 4 15 15 15 15 Class Distribution -------------------- 53% | Mutant 46% | Scavenger-Mutant Dominant Class ---------------- Mutant | -10/Materials Mutant | -10/Mines Scavenger-Mutant | -9/Materials Scavenger-Mutant | -9/Mines Scavenger-Mutant | -9/Exiles Mutant | -8/Mines Resources | -11 -10 -10 -9 -9 -9 -8 ----------- Run | Yrd Mat Min Mat Min Exi Min Matter Collected 2117 | 310 90 75 633 24 898 87 Remotely . | . . . . . . . Salvage Created 1613 | 149 164 35 1080 27 158 . Parts 91 | 11 10 3 62 . 5 . Haulers Intercepted 1 | . . . 1 . . . Recyclers Shooed 1 | 1 . . . . . . Parts Field Recycled . | . . . . . . . Retrieved Matter . | . . . . . . . Parts Self-Destructed . | . . . . . . . Prevented . | . . . . . . . Parts Restored . | . . . . . . . Kills | -11 -10 -10 -9 -9 -9 -8 ------- Run | Yrd Mat Min Mat Min Exi Min Combat Hostiles Destroyed 35 | . 3 3 23 . 6 . Guns 35 | . 3 3 23 . 6 . Classes Destroyed 10 | 2 2 1 4 . 1 . Tunneler 3 | 3 . . . . . . Hauler 1 | . . . 1 . . . Recycler 1 | 1 . . . . . . Operator 1 | . 1 . . . . . Watcher 4 | . . . 4 . . . Swarmer 7 | . . 3 4 . . . Grunt 15 | . 3 . 12 . . . Brawler 1 | . . . 1 . . . Sentry 6 | . . . 6 . . . Assembled 5 | . . . . . 5 . Best Kill Streak 9 | 3 2 3 9 . 5 . Combat Bots Only 6 | . 2 3 6 . 5 . Max Kills in Single Turn 2 | 1 1 1 2 . 2 . Gunslinging 1 | . . . 1 . 1 . Exploded . | . . . . . . . Melee . | . . . . . . . Uniques/NPCs Destroyed 1 | . . . . . 1 . 8R-AWN (-9/Exiles) Combat | -11 -10 -10 -9 -9 -9 -8 -------- Run | Yrd Mat Min Mat Min Exi Min Hostile Shots Fired 302 | . 23 30 107 . 138 4 Missed 58 | . 5 4 23 . 24 2 Hits 244 | . 18 26 84 . 114 2 Melee 4 | . . . . . 4 . Projectile 240 | . 18 26 84 . 110 2 Critical Strikes 47 | . 1 . 1 2 43 . Damage Taken 3068 | . 222 196 963 34 1626 27 Core 468 | . 47 19 104 20 269 9 Absorbed by Shields . | . . . . . . . Ignored by Resistances 434 | . . . 63 9 354 8 Core Remaining (%) 86 | 100 . 73 . . . . Volleys Fired 208 | 15 25 10 74 3 81 . Largest 2 | 2 2 2 2 2 2 . Hottest 50 | 40 40 40 50 50 50 . Shots Fired 391 | 30 50 20 148 6 133 4 Gun 389 | 30 50 20 148 6 131 4 Cannon . | . . . . . . . Launcher . | . . . . . . . Special 2 | . . . . . 2 . Kinetic 389 | 30 50 20 148 6 131 4 Thermal 2 | . . . . . 2 . Explosive . | . . . . . . . Electromagnetic . | . . . . . . . Robot Hit Streak 26 | 8 7 2 10 4 26 1 Robot Miss Streak 4 | 2 4 3 4 1 4 3 Penetration Max . | . . . . . . . Secondary Targets 10 | . 1 2 6 . 1 . Max Gunslinging Chain 1 | . 1 1 1 . 1 . Autonomous 4 | . . . . . . 4 Shots Hit Robots 237 | 18 29 9 89 4 87 1 Core Hits 90 | 8 12 6 40 4 20 . Critical Kills 2 | . . . 2 . . . Critical Parts Destroyed 1 | . 1 . . . . . Critical Strikes 3 | . 1 . 2 . . . Destroy 3 | . 1 . 2 . . . Melee Attacks . | . . . . . . . Impact . | . . . . . . . Slashing . | . . . . . . . Piercing . | . . . . . . . Sneak Attacks . | . . . . . . . Combat Hostiles . | . . . . . . . Follow-up Attacks . | . . . . . . . Damage Inflicted 3539 | 149 228 66 1452 87 1536 21 Guns 3517 | 149 228 66 1452 87 1514 21 Cannons . | . . . . . . . Explosions . | . . . . . . . Melee . | . . . . . . . Ramming . | . . . . . . . Kinetic 3517 | 149 228 66 1452 87 1514 21 Thermal 22 | . . . . . 22 . Explosive . | . . . . . . . Electromagnetic . | . . . . . . . Impact . | . . . . . . . Slashing . | . . . . . . . Piercing . | . . . . . . . Highest Corruption . | . . . . . . . Average Corruption . | . . . . . . . Corruption Purged . | . . . . . . . Corruption Blocked . | . . . . . . . Overload Shots . | . . . . . . . Overflow Damage . | . . . . . . . Projectiles . | . . . . . . . Explosions . | . . . . . . . Melee . | . . . . . . . Knockbacks . | . . . . . . . Impact . | . . . . . . . Kinetic . | . . . . . . . Secondary . | . . . . . . . Self-Inflicted Damage . | . . . . . . . Shots . | . . . . . . . Rammed . | . . . . . . . Targets Rammed . | . . . . . . . Kicked . | . . . . . . . Crushed . | . . . . . . . Highest Temperature 374 | . 37 . 3 . 374 . Average Temperature 191 | . 18 . 2 . 225 . Received Heat Transfer 537 | . 141 . 396 . . . Effects 7 | . . . . . 7 . Energy Bleed 1 | . . . . . 1 . Interference 4 | . . . . . 4 . Matter Decay 1 | . . . . . 1 . Damage (minor) 1 | . . . . . 1 . Siege Activations . | . . . . . . . Martial Activations . | . . . . . . . Shielding Activations . | . . . . . . . Robots Disrupted . | . . . . . . . Combat Hostiles . | . . . . . . . Robots Corrupted . | . . . . . . . Combat Hostiles . | . . . . . . . Parts Fried . | . . . . . . . Impact Corruptions . | . . . . . . . Robots Melted . | . . . . . . . Combat Hostiles . | . . . . . . . Parts Melted . | . . . . . . . Heat Transferred 18 | . . . . . 18 . Parts Sabotaged . | . . . . . . . Parts Stolen . | . . . . . . . Parts Stripped . | . . . . . . . Power Chain Reactions . | . . . . . . . Alert | -11 -10 -10 -9 -9 -9 -8 ------- Run | Yrd Mat Min Mat Min Exi Min Maximum Alert Level 1 | . . . 1 . . . Low Security (%) 96 | 100 100 100 88 100 . 100 Level 1 3 | . . . 11 . . . Level 2 . | . . . . . . . Level 3 . | . . . . . . . Level 4 . | . . . . . . . Level 5 . | . . . . . . . High Security . | . . . . . . . Max Security . | . . . . . . . Peak Influence 296 | 10 50 55 296 110 . 5 Initial 110 | . 3 . . 110 . . Average 32 | 1 4 12 90 17 . . Influence Increases 889 | 20 98 85 647 34 . 5 Destroy 0b10 Robot/C 600 | . 60 60 460 20 . . Destroy 0b10 Robot/NC 50 | 20 5 . 25 . . . Destroy Leader 160 | . 20 10 120 10 . . Allied During Kill 4 | . . . . 4 . . Successful Hack 23 | . 13 . 10 . . . Select Force Hacks 30 | . . . 30 . . . Destroy Structure 7 | . . . 2 . . 5 Partial Spotted 15 | . . 15 . . . . Influence Decreases 884 | 15 103 85 363 318 . . Entered New Map 176 | . 2 . . 174 . . Time Decay 638 | 15 101 65 353 104 . . Lost Part 30 | . . 20 10 . . . Lost Ally 40 | . . . . 40 . . Squads Dispatched 3 | . 1 . 2 . . . Investigation 1 | . . . 1 . . . Extermination . | . . . . . . . Reinforcement 2 | . 1 . 1 . . . Assault . | . . . . . . . Garrison . | . . . . . . . Intercept . | . . . . . . . Searches Triggered . | . . . . . . . Construction Impeded . | . . . . . . . Haulers Reinforced . | . . . . . . . Active Scanning Responses . | . . . . . . . Cargo Convoy Interrupts . | . . . . . . . Stealth | -11 -10 -10 -9 -9 -9 -8 --------- Run | Yrd Mat Min Mat Min Exi Min Distress Signals 5 | . . . 5 . . . Communications Jammed . | . . . . . . . Distress Signals . | . . . . . . . Times Spotted 55 | . 11 3 34 . 6 1 Peak Tracking Total 11 | . 2 3 6 . 11 1 Tactical Retreats 2 | . . . . . 2 . Traps | -11 -10 -10 -9 -9 -9 -8 ------- Run | Yrd Mat Min Mat Min Exi Min Traps Triggered 3 | . 3 . . . . . Indirectly . | . . . . . . . Trap Hack Attempts . | . . . . . . . Triggered . | . . . . . . . Disarmed . | . . . . . . . Reprogrammed . | . . . . . . . Reused . | . . . . . . . Traps Extracted . | . . . . . . . Installed . | . . . . . . . Triggered . | . . . . . . . Machines | -11 -10 -10 -9 -9 -9 -8 ---------- Run | Yrd Mat Min Mat Min Exi Min Machines Disabled 5 | . . . . . 5 . Max in Single Turn 1 | . . . . . 1 . Machines Repaired . | . . . . . . . Machines Dismantled . | . . . . . . . Machines Sabotaged . | . . . . . . . Overloaded Fab Kills . | . . . . . . . Hacking | -11 -10 -10 -9 -9 -9 -8 --------- Run | Yrd Mat Min Mat Min Exi Min Machines Accessed 15 | . 6 . 7 . 2 . Terminals 11 | . 6 . 5 . . . Fabricators . | . . . . . . . Repair Stations . | . . . . . . . Recycling Units 1 | . . . 1 . . . Scanalyzers 1 | . . . 1 . . . Garrison Access . | . . . . . . . Total Hacks 34 | . 16 . 16 . 2 . Successful 20 | . 6 . 12 . 2 . Failed 14 | . 10 . 4 . . . Catastrophic . | . . . . . . . Database Lockouts . | . . . . . . . Manual 27 | . 14 . 12 . 1 . Terminals 27 | . 16 . 11 . . . Fabricators . | . . . . . . . Repair Stations . | . . . . . . . Recycling Units 3 | . . . 3 . . . Scanalyzers 2 | . . . 2 . . . Garrison Access . | . . . . . . . Terminal Hacks 6 | . 1 . 3 . 2 . Record 1 | . . . . . 1 . Terminal Index 1 | . . . 1 . . . Zone Layout 3 | . 1 . 2 . . . Proto ID Catalog 1 | . . . . . 1 . Fabricator Hacks . | . . . . . . . Repair Station Hacks . | . . . . . . . Recycling Unit Hacks 1 | . . . 1 . . . Retrieve Components 1 | . . . 1 . . . Scanalyzer 2 | . . . 2 . . . Retrieve Study 2 | . . . 2 . . . Garrison Access Hacks . | . . . . . . . Unauthorized Hacks 11 | . 5 . 6 . . . Terminals 10 | . 5 . 5 . . . Skim 10 | . 5 . 5 . . . Fabricators . | . . . . . . . Repair Stations . | . . . . . . . Recycling Units 1 | . . . 1 . . . Tunnel 1 | . . . 1 . . . Scanalyzers . | . . . . . . . Garrison Access . | . . . . . . . Data Cores Recovered 1 | . 1 . . . . . Used . | . . . . . . . Hacking Detections 9 | . 5 . 4 . . . Full Trace Events . | . . . . . . . Feedback Events . | . . . . . . . Feedback Blocked . | . . . . . . . Robot Schematics Acquired . | . . . . . . . Robots Built . | . . . . . . . Authchips . | . . . . . . . Time . | . . . . . . . Total Robot Build Rating . | . . . . . . . Part Schematics Acquired . | . . . . . . . Parts Built . | . . . . . . . Authchips . | . . . . . . . Time . | . . . . . . . Total Part Build Rating . | . . . . . . . Part Studies Acquired 2 | . . . 2 . . . Parts Repaired . | . . . . . . . Time . | . . . . . . . Parts Recycled . | . . . . . . . Recycled Matter . | . . . . . . . Retrieved Matter . | . . . . . . . Retrieved Components . | . . . . . . . Parts Scanalyzed . | . . . . . . . Part Schematics Acquired . | . . . . . . . Parts Damaged . | . . . . . . . Bothacking | -11 -10 -10 -9 -9 -9 -8 ------------ Run | Yrd Mat Min Mat Min Exi Min Used RIF Installer . | . . . . . . . Robots Hacked . | . . . . . . . Non-combat . | . . . . . . . Combat . | . . . . . . . Robot Hacks Applied . | . . . . . . . Relay Couplers Released . | . . . . . . . Fabnet Peak Effective % . | . . . . . . . Robots Rewired . | . . . . . . . Allies Hacked . | . . . . . . . Hacks Repelled . | . . . . . . . Allies | -11 -10 -10 -9 -9 -9 -8 -------- Run | Yrd Mat Min Mat Min Exi Min Total Allies 2 | . . . . 2 . . Largest Group 2 | . . . . 2 . . Highest-Rated Group 45 | . . . . 45 . . Highest-Rated Ally 31 | . . . . 31 . . Total Orders . | . . . . . . . Ally Attacks 10 | . . . . 10 . . Total Damage 166 | . . . . 166 . . Kills 1 | . . . . 1 . . Allies Corrupted . | . . . . . . . Allies Melted . | . . . . . . . Intel | -11 -10 -10 -9 -9 -9 -8 ------- Run | Yrd Mat Min Mat Min Exi Min Active Infowar (turns) 66 | 8 58 . . . . . Seismic 66 | 8 58 . . . . . Robot Analysis Total . | . . . . . . . Derelict Logs Recovered 3 | . . 2 . 1 . . Drone Launches . | . . . . . . . Drone Recoveries . | . . . . . . . Exploration | -11 -10 -10 -9 -9 -9 -8 ------------- Run | Yrd Mat Min Mat Min Exi Min Turns Passed 4855 | 138 916 298 944 754 1599 206 Spaces Moved 2176 | 60 306 290 486 133 798 103 Core 21 | 13 . . . . 8 . Treads 1590 | 47 306 4 360 133 740 . Legs 153 | . . . . . 50 103 Wheels 412 | . . 286 126 . . . Hover . | . . . . . . . Flight . | . . . . . . . Fastest Speed 50 | 50 160 90 80 160 100 190 Average Speed 147 | 136 160 91 140 160 160 190 Slowest Speed 240 | 160 240 240 160 160 190 190 Overloaded Moves . | . . . . . . . Propulsion Burnouts . | . . . . . . . Robots Hopped . | . . . . . . . Potential Cave-ins . | . . . . . . . Cave-ins Triggered . | . . . . . . . Exploration Rate (%) 49 | 4 66 75 50 48 71 32 Regions Visited 6 Branch Regions 4 Pre-discovered Areas 5 | . 2 1 1 . 1 . Known Exits Taken . | . . . . . . . Unknown Exits Taken 6 | 1 1 1 1 1 1 . Scrap Searched 3 | . . 1 . 1 . 1 Spaces Dug . | . . . . . . . Terrain Destroyed 5 | . . . . . . 5 Melee . | . . . . . . . Projectile 5 | . . . . . . 5 AOE . | . . . . . . . Terrain Rammed . | . . . . . . . Walls Destroyed . | . . . . . . . Machines Disabled . | . . . . . . . Actions | -11 -10 -10 -9 -9 -9 -8 --------- Run | Yrd Mat Min Mat Min Exi Min Total 3531 | 90 691 305 641 670 1021 113 Wait 966 | . 344 . 17 535 62 8 Move 2170 | 59 305 289 485 132 797 103 Hop . | . . . . . . . Pick Up 81 | 8 10 . 31 . 31 1 Fast Attach 5 | 3 . . . . 2 . Attach 35 | 4 6 3 8 . 14 . Detach 2 | . . . . . 2 . Swap 14 | 1 . 2 5 . 6 . Drop 50 | . 1 1 21 . 26 1 Fire 208 | 15 25 10 74 3 81 . Melee . | . . . . . . . Ram . | . . . . . . . Kick . | . . . . . . . Crush . | . . . . . . . Escape Stasis . | . . . . . . . Rewire . | . . . . . . . Trap . | . . . . . . . Miscellaneous . | . . . . . . . Route ------- -11/Scrapyard -10/Materials (discovered 5 exits: *Mat x3 / [*Min] / Sub) -10/Mines (discovered 2 exits: *Mat x2) -9/Materials (discovered 3 exits: *Mat x2 / [*Min]) -9/Mines (discovered 2 exits: *Mat / *Exi) -9/Exiles -8/Mines History --------- Turn | Location | Event 14 | -11/Scrapyard | Discovered new exit (range 15) 139 | -11/Scrapyard | Entered Materials 304 | -10/Materials | Build established: Mutant 327 | -10/Materials | Discovered new exit (range 6) 562 | -10/Materials | Discovered new exit (range 16) 661 | -10/Materials | Discovered new exit (range 10) 672 | -10/Materials | Discovered new exit (range 16) 717 | -10/Materials | Identified exit to Subcaves 768 | -10/Materials | Learned 2 Storage zone layouts 839 | -10/Materials | Learned Storage machine intel 858 | -10/Materials | Learned location of 2 exits from Subcaves 880 | -10/Materials | Learned location of Storage (-7) 904 | -10/Materials | Learned 4 Recycling zone layouts 940 | -10/Materials | Learned location of 2 exits from Subcaves 1055 | -10/Materials | Entered Mines 1145 | -10/Mines | Discovered new exit (range 10) 1197 | -10/Mines | Learned 2 Materials zone layouts 1216 | -10/Mines | Discovered new exit (range 6) 1353 | -10/Mines | Entered Materials 1353 | -9/Materials | Evolved 2 slots: Propulsion x1, Utility x1 1354 | -9/Materials | Identified exit to Materials 2028 | -9/Materials | Discovered exit to Materials (range 16) 2039 | -9/Materials | Build established: Scavenger-Mutant 2196 | -9/Materials | Discovered new exit (range 9) 2297 | -9/Materials | Entered Mines 2384 | -9/Mines | Discovered exit to Materials (range 7) 2442 | -9/Mines | Assembled infested the area 2477 | -9/Mines | Met 8R-AWN 3043 | -9/Mines | Discovered new exit (range 5) 3051 | -9/Mines | Entered Exiles 3090 | -9/Exiles | Welcomed by 8R-AWN 3117 | -9/Exiles | Met EX-HEX 3205 | -9/Exiles | Met EX-DEC 3231 | -9/Exiles | Learned location of Zion (-6) 3409 | -9/Exiles | Met EX-BIN 3481 | -9/Exiles | Build established: Mutant 3484 | -9/Exiles | Aligned with FarCom system 3486 | -9/Exiles | Given EX-Vault access code 3522 | -9/Exiles | Opened EX-Vault 3530 | -9/Exiles | Found Prototype Storage 3535 | -9/Exiles | Found Prototype Ballistic Gun 3544 | -9/Exiles | Identified Lightpack 2.0 3544 | -9/Exiles | Identified AWS/Gauss 3549 | -9/Exiles | Found Chronowheel 3580 | -9/Exiles | Warned to stay clear of 0b10 Research branches 3681 | -9/Exiles | Discovered new exit (range 10) 3820 | -9/Exiles | Build established: Scavenger-Mutant 4027 | -9/Exiles | Learned about 8R-AWN's background 4263 | -9/Exiles | Attacked by the Exiles 4389 | -9/Exiles | Core integrity fell below 50% 4452 | -9/Exiles | Lost 4 parts (1p1u2w) 4495 | -9/Exiles | Core integrity fell below 20% 4530 | -9/Exiles | Destroyed 8R-AWN 4545 | -9/Exiles | Lost 6 parts (1n2u3w) 4548 | -9/Exiles | Found Prototype Ballistic Gun 4549 | -9/Exiles | Identified 8R-AWN's Boregun 4554 | -9/Exiles | Found Prototype Processor 4650 | -9/Exiles | Stole three prototypes: AWS/Gauss, Lightpack 2.0, Chronowheel 4650 | -9/Exiles | Entered Mines 4656 | -8/Mines | Build established: Mutant 4856 | -8/Mines | Destroyed by H-55 Commando with Assault Rifle Last Messages --------------- 04635_ Dropped Cryofiber Web. 04636_ Acquired Trap Extractor. LOCATION=UNKNOWN GOAL=ESCAPE 04677_ Searching scrap... 04677_ Found 32 Matter. 04677_ Found Hacking Suite. 04677_ Found Huge Storage Unit. 04677_ Found 55 Matter. 04678_ Acquired 55 matter. 04683_ Acquired 32 matter. 04692_ Dropped Hcp. Matter Pod. 04704_ Acquired Hacking Suite. 04737_ K-01 Serf collects debris. 04851_ T-07 Excavator is excavating. 04852_ K-01 Serf collects debris. 04853_ Slug penetrates Wall. 04853_ U-05 Engineer lays Concrete. 04854_ Slug penetrates Wall. 04856_ Penetrated by Slug. Map ----- +----------------------------------------------------+ | | | | | | | | | | | | | | | | | | | | | ?????????????????????????????????????????????????? | | ?????????????????????????????????????????????????? | | ?????????????????????????????????????????????????? | | ?????????????????????????????????????????????????? | | ?????????????????????????????????????????????????? | | ?????????????????????????????????????????????????? | | ?????????????????????????????????????????????????? | | ???????????????????????####??????????????????????? | | ??????????????????##### t #???????? #????????????? | | ?????????????????## ## #??????? ????????????? | | ?????????????????# #u$#????? ????????????? | | ?????????????????? # #???? #?????????????? | | ????????###???????# ## #??? #??????????????? | | ???????## ####??## #?# u#?? #??????????????? | | ???????# #### ### ## #??????????????? | | ???????# ## ## @ #??????????????? | | ????????# #???????????????? | | ?????????# #???????????????? | | ?????????## ##???????????????? | | ??????????## ## ##????????????????? | | ???????????## #### k r #?????????????????? | | ????????????# #######??# #?????????????????? | | ????????????# #######??# #????????????????? | | ????????????# #??###; #???????????????? | | ????????????####### #?????;; #??????????????? | | ??????????????????# #?????#;h #??????????????? | | ??????????????????# #?????? ##??????????????? | | ??????????????????# #?????? ##???????????????? | | ??????????????????# #??????# ##????????????????? | | ??????????????????# #??????# ###?????????????????? | | ??????????????????# #??????# #???????????????????? | | ??????????????????# #??????# #???????????????????? | | ??????????????????# #??????# #???????????????????? | | ??????????????????# #??????# #???????????????????? | | ??????????????????# ######## #???????????????????? | | ??????????????????# #???????????????????? | | ??????????????????####### ## #???????????????????? | | ????????????????????????# ## #???????????????????? | | ???????????????????????? ## #???????????????????? | | ???????????????????????##### #???????????????????? | +----------------------------------------------------+ Best States ------------- Heat Dissipation 42 Energy Generation 14 Energy Capacity 265 Matter Stores 300 Matter Capacity 300 Sight Range 16 Terrain Scan Density 10 Base Temperature (-) 100 Armor Coverage 300 Resistance: KI 20 Evasion (%) 50 Recoil Reduction 3 Offensive Hacking 10 Item Schematics ----------------- None Robot Schematics ------------------ None Fabricated ------------ Nothing Repaired ---------- Nothing Studied --------- Wheel | -9/Materials | Hacked Com. Wheel | -9/Materials | Hacked Alien Tech Used ----------------- None Achievements -------------- None Challenges ------------ None Game ------ Seed PowerTitaniumShockpuncher Manual? 0 Play Time 00:23:19 Cumulative 495.8 hours Start 2025.11.13 @ 05:24:05 End 2025.11.13 @ 06:57:02 Sessions 4 Manual Loads 0 Difficulty Rogue Special Mode None Game No. 664 Rogue 664 Adventurer 0 Explorer 0 Win Type - Total 15 Types 7/0/2/2/1/0/2/1/0/0 Lore% 91 Gallery% 85 Achievement% 66 Wizard Run 0 Options --------- Layout 0 ASCII 0 Keyboard 0 Movement Mouse Keybinds 0 Fullscreen 1 Font 24/Terminus Map View 76x50 Zoom Use 0% Tactical HUD 1 Map Filters NONE Filters NONE Steam 1 RUN: 59c4dc68-f87d-47d8-a9fe-f7f644fee7cb